[Event "Titled Tuesday Blitz January 31 Early 2023"]
[White "Zaichenko, Daria"]
[Black "Zochowski, Kacper"]
[WhiteFideId "4197453"]
[BlackFideId "1125494"]
[WhiteElo "2104"]
[BlackElo "2262"]
[Result "0-1"]
[Round "04"]
[TimeControl "180+2"]
[Date "2023.01.31"]
[WhiteClock "0:01:03"]
[BlackClock "0:00:33"]

1. e4 {[%clk 0:02:54]}  d6 {[%clk 0:02:51]} 2. d4 {[%clk 0:02:52]}  Nf6 {[%clk 0:02:50]} 3. Nc3 {[%clk 0:02:51]}  e5 {[%clk 0:02:49]} 4. f4 {[%clk 0:02:42]}  exd4 {[%clk 0:02:47]} 5. Qxd4 {[%clk 0:02:41]}  c6 {[%clk 0:02:44]} 6. Nf3 {[%clk 0:02:40]}  Nbd7 {[%clk 0:02:44]} 7. Bc4 {[%clk 0:02:38]}  Nb6 {[%clk 0:02:43]} 8. Bb3 {[%clk 0:02:37]}  Be7 {[%clk 0:02:40]} 9. O-O {[%clk 0:02:34]}  O-O {[%clk 0:02:40]} 10. Bd2 {[%clk 0:02:26]}  Bg4 {[%clk 0:02:37]} 11. h3 {[%clk 0:02:24]}  Bxf3 {[%clk 0:02:35]} 12. Rxf3 {[%clk 0:02:24]}  Rc8 {[%clk 0:02:17]} 13. Qf2 {[%clk 0:02:12]}  d5 {[%clk 0:02:12]} 14. e5 {[%clk 0:02:09]}  Ne4 {[%clk 0:02:12]} 15. Nxe4 {[%clk 0:02:06]}  dxe4 {[%clk 0:02:13]} 16. Rg3 {[%clk 0:02:02]}  Bh4 {[%clk 0:02:11]} 17. Rxg7+ {[%clk 0:01:58]}  Kxg7 {[%clk 0:02:10]} 18. g3 {[%clk 0:01:52]}  Be7 {[%clk 0:02:04]} 19. Bc3 {[%clk 0:01:50]}  Nd5 {[%clk 0:01:52]} 20. Rd1 {[%clk 0:01:46]}  Qb6 {[%clk 0:00:59]} 21. Bd4 {[%clk 0:01:45]}  e3 {[%clk 0:00:59]} 22. Qe2 {[%clk 0:01:42]}  Bc5 {[%clk 0:00:59]} 23. Qg4+ {[%clk 0:01:39]}  Kh8 {[%clk 0:00:59]} 24. c3 {[%clk 0:01:33]}  Bxd4 {[%clk 0:00:58]} 25. Rxd4 {[%clk 0:01:31]}  Rg8 {[%clk 0:00:58]} 26. Qh4 {[%clk 0:01:28]}  e2 {[%clk 0:00:56]} 27. Kf2 {[%clk 0:01:23]}  Qd8 {[%clk 0:00:51]} 28. Qh6 {[%clk 0:01:16]}  Rg6 {[%clk 0:00:48]} 29. Qh5 {[%clk 0:01:17]}  Qg8 {[%clk 0:00:47]} 30. g4 {[%clk 0:01:16]}  Re8 {[%clk 0:00:42]} 31. Bc2 {[%clk 0:01:13]}  Qg7 {[%clk 0:00:40]} 32. Bxg6 {[%clk 0:01:11]}  fxg6 {[%clk 0:00:40]} 33. Qh4 {[%clk 0:01:07]}  Nxf4 {[%clk 0:00:38]} 34. Rxf4 {[%clk 0:01:06]}  e1=Q+ {[%clk 0:00:33]} 35. Kxe1 {[%clk 0:01:05]}  Qxe5+ {[%clk 0:00:33]} 36. Kd1 {[%clk 0:01:03]}  Qxf4 {[%clk 0:00:33]} 0-1


[Site "https://www.chess.com"]

[Event "Titled Tuesday Blitz January 31 Early 2023"]
[White "Przybylski, Wojciech"]
[Black "Lucassen, Mickey"]
[WhiteFideId "1117599"]
[BlackFideId "12919110"]
[WhiteElo "2321"]
[BlackElo "2023"]
[Result "0-1"]
[Round "04"]
[TimeControl "180+2"]
[Date "2023.01.31"]
[WhiteClock "0:00:02"]
[BlackClock "0:00:10"]

1. e4 {[%clk 0:03:00]}  c5 {[%clk 0:02:58]} 2. Nf3 {[%clk 0:03:00]}  d6 {[%clk 0:02:59]} 3. d4 {[%clk 0:02:58]}  cxd4 {[%clk 0:03:00]} 4. Nxd4 {[%clk 0:02:58]}  Nf6 {[%clk 0:03:00]} 5. Nc3 {[%clk 0:02:59]}  g6 {[%clk 0:03:00]} 6. h4 {[%clk 0:02:57]}  Nc6 {[%clk 0:02:56]} 7. h5 {[%clk 0:02:56]}  Nxh5 {[%clk 0:02:48]} 8. g4 {[%clk 0:02:46]}  Nf6 {[%clk 0:02:43]} 9. g5 {[%clk 0:02:44]}  Ng4 {[%clk 0:02:36]} 10. Nxc6 {[%clk 0:02:23]}  bxc6 {[%clk 0:02:30]} 11. Be2 {[%clk 0:02:20]}  Ne5 {[%clk 0:02:21]} 12. f4 {[%clk 0:02:17]}  Nd7 {[%clk 0:02:21]} 13. Be3 {[%clk 0:02:04]}  Bg7 {[%clk 0:02:19]} 14. Qd2 {[%clk 0:02:03]}  Qa5 {[%clk 0:02:16]} 15. O-O {[%clk 0:01:54]}  Rb8 {[%clk 0:02:09]} 16. f5 {[%clk 0:01:51]}  Rxb2 {[%clk 0:02:03]} 17. f6 {[%clk 0:01:48]}  exf6 {[%clk 0:02:00]} 18. e5 {[%clk 0:01:36]}  Qxe5 {[%clk 0:01:43]} 19. Bd4 {[%clk 0:01:28]}  Qg3+ {[%clk 0:01:40]} 20. Kh1 {[%clk 0:01:25]}  c5 {[%clk 0:01:21]} 21. Bxf6 {[%clk 0:01:05]}  Nxf6 {[%clk 0:00:54]} 22. gxf6 {[%clk 0:01:02]}  Bxf6 {[%clk 0:00:41]} 23. Nd5 {[%clk 0:00:39]}  Be5 {[%clk 0:00:26]} 24. Bf3 {[%clk 0:00:30]}  O-O {[%clk 0:00:20]} 25. Qh6 {[%clk 0:00:13]}  Bg7 {[%clk 0:00:11]} 26. Qd2 {[%clk 0:00:09]}  Qh4+ {[%clk 0:00:08]} 27. Kg1 {[%clk 0:00:05]}  Bd4+ {[%clk 0:00:08]} 28. Ne3 {[%clk 0:00:05]}  Qg3+ {[%clk 0:00:07]} 29. Kh1 {[%clk 0:00:03]}  Bh3 {[%clk 0:00:06]} 30. Ng2 {[%clk 0:00:04]}  Bxg2+ {[%clk 0:00:04]} 31. Qxg2 {[%clk 0:00:04]}  Qxg2+ {[%clk 0:00:04]} 32. Bxg2 {[%clk 0:00:03]}  Rxc2 {[%clk 0:00:05]} 33. Bd5 {[%clk 0:00:03]}  Bxa1 {[%clk 0:00:04]} 34. Rxa1 {[%clk 0:00:02]}  Kg7 {[%clk 0:00:04]} 35. Rf1 {[%clk 0:00:02]}  Rd2 {[%clk 0:00:05]} 36. Bb3 {[%clk 0:00:02]}  Rd4 {[%clk 0:00:05]} 37. Rc1 {[%clk 0:00:01]}  a5 {[%clk 0:00:06]} 38. Kg2 {[%clk 0:00:02]}  a4 {[%clk 0:00:07]} 39. Bc4 {[%clk 0:00:02]}  Rb8 {[%clk 0:00:07]} 40. Be2 {[%clk 0:00:01]}  Rb2 {[%clk 0:00:08]} 41. Kf3 {[%clk 0:00:02]}  Rdd2 {[%clk 0:00:08]} 42. Bc4 {[%clk 0:00:02]}  Rxa2 {[%clk 0:00:08]} 43. Ke3 {[%clk 0:00:01]}  Rdb2 {[%clk 0:00:06]} 44. Rd1 {[%clk 0:00:01]}  Ra3+ {[%clk 0:00:06]} 45. Ke4 {[%clk 0:00:02]}  Rc3 {[%clk 0:00:06]} 46. Bd3 {[%clk 0:00:01]}  Rb4+ {[%clk 0:00:07]} 47. Kd5 {[%clk 0:00:01]}  Rxd3+ {[%clk 0:00:07]} 48. Rxd3 {[%clk 0:00:01]}  Rd4+ {[%clk 0:00:08]} 49. Rxd4 {[%clk 0:00:01]}  cxd4 {[%clk 0:00:09]} 50. Kxd4 {[%clk 0:00:02]}  Kf6 {[%clk 0:00:10]} 0-1


[Site "https://www.chess.com"]

[Event "Titled Tuesday Blitz January 31 Early 2023"]
[White "Rose, Felix"]
[Black "Manukian, Artak"]
[WhiteFideId "5105722"]
[BlackFideId "13301373"]
[WhiteElo "2091"]
[BlackElo "2196"]
[Result "1-0"]
[Round "04"]
[TimeControl "180+2"]
[Date "2023.01.31"]
[WhiteClock "0:00:07"]
[BlackClock "0:00:02"]

1. e4 {[%clk 0:02:59]}  c6 {[%clk 0:02:54]} 2. d4 {[%clk 0:02:59]}  d5 {[%clk 0:02:54]} 3. e5 {[%clk 0:03:00]}  Bf5 {[%clk 0:02:53]} 4. h4 {[%clk 0:03:01]}  h5 {[%clk 0:02:50]} 5. Bd3 {[%clk 0:03:01]}  Bxd3 {[%clk 0:02:46]} 6. Qxd3 {[%clk 0:03:01]}  e6 {[%clk 0:02:46]} 7. Bg5 {[%clk 0:03:01]}  Qa5+ {[%clk 0:02:42]} 8. Nd2 {[%clk 0:02:59]}  Qa6 {[%clk 0:02:42]} 9. c4 {[%clk 0:03:00]}  Bb4 {[%clk 0:02:40]} 10. b3 {[%clk 0:02:56]}  Nh6 {[%clk 0:02:37]} 11. Nf3 {[%clk 0:02:53]}  Nd7 {[%clk 0:02:36]} 12. O-O {[%clk 0:02:51]}  Nf5 {[%clk 0:02:34]} 13. Qc2 {[%clk 0:02:41]}  f6 {[%clk 0:02:26]} 14. cxd5 {[%clk 0:02:27]}  cxd5 {[%clk 0:02:21]} 15. exf6 {[%clk 0:02:21]}  gxf6 {[%clk 0:02:18]} 16. Rfe1 {[%clk 0:02:20]}  Kf7 {[%clk 0:02:11]} 17. a3 {[%clk 0:02:04]}  Bd6 {[%clk 0:01:57]} 18. Rxe6 {[%clk 0:01:47]}  Kxe6 {[%clk 0:01:51]} 19. Re1+ {[%clk 0:01:44]}  Kf7 {[%clk 0:01:22]} 20. Qxf5 {[%clk 0:01:43]}  Qc6 {[%clk 0:01:23]} 21. Re6 {[%clk 0:01:29]}  Bh2+ {[%clk 0:01:17]} 22. Kxh2 {[%clk 0:01:15]}  Qxe6 {[%clk 0:01:18]} 23. Qf4 {[%clk 0:01:10]}  Kg7 {[%clk 0:01:17]} 24. Qc7 {[%clk 0:01:03]}  fxg5 {[%clk 0:01:10]} 25. Nxg5 {[%clk 0:00:57]}  Qc6 {[%clk 0:01:11]} 26. Qg3 {[%clk 0:00:50]}  Nf6 {[%clk 0:01:11]} 27. Ndf3 {[%clk 0:00:42]}  Ng4+ {[%clk 0:01:03]} 28. Kh3 {[%clk 0:00:42]}  Qd7 {[%clk 0:00:50]} 29. Qf4 {[%clk 0:00:26]}  Rhf8 {[%clk 0:00:37]} 30. Qd2 {[%clk 0:00:25]}  Nxf2+ {[%clk 0:00:31]} 31. Kh2 {[%clk 0:00:25]}  Ng4+ {[%clk 0:00:31]} 32. Kg1 {[%clk 0:00:25]}  Rae8 {[%clk 0:00:30]} 33. Ne5 {[%clk 0:00:25]}  Nxe5 {[%clk 0:00:29]} 34. dxe5 {[%clk 0:00:26]}  Qf5 {[%clk 0:00:22]} 35. Nf3 {[%clk 0:00:25]}  Qf4 {[%clk 0:00:20]} 36. Qxd5 {[%clk 0:00:25]}  Rd8 {[%clk 0:00:20]} 37. Qxb7+ {[%clk 0:00:24]}  Rf7 {[%clk 0:00:20]} 38. Qc6 {[%clk 0:00:19]}  Rd1+ {[%clk 0:00:20]} 39. Kf2 {[%clk 0:00:19]}  Qxh4+ {[%clk 0:00:20]} 40. Ke2 {[%clk 0:00:18]}  Rxf3 {[%clk 0:00:16]} 41. Kxd1 {[%clk 0:00:17]}  Rd3+ {[%clk 0:00:14]} 42. Ke2 {[%clk 0:00:15]}  Qd4 {[%clk 0:00:12]} 43. Qf6+ {[%clk 0:00:15]}  Kg8 {[%clk 0:00:11]} 44. Qg6+ {[%clk 0:00:13]}  Kf8 {[%clk 0:00:12]} 45. Qf5+ {[%clk 0:00:13]}  Ke8 {[%clk 0:00:12]} 46. Qxd3 {[%clk 0:00:14]}  Qb2+ {[%clk 0:00:10]} 47. Ke3 {[%clk 0:00:14]}  Qxa3 {[%clk 0:00:11]} 48. Qg6+ {[%clk 0:00:14]}  Ke7 {[%clk 0:00:10]} 49. Qf6+ {[%clk 0:00:14]}  Kd7 {[%clk 0:00:10]} 50. Qf7+ {[%clk 0:00:14]}  Kc8 {[%clk 0:00:10]} 51. e6 {[%clk 0:00:15]}  Qxb3+ {[%clk 0:00:10]} 52. Kf4 {[%clk 0:00:15]}  Qc4+ {[%clk 0:00:10]} 53. Kg5 {[%clk 0:00:16]}  Qg4+ {[%clk 0:00:10]} 54. Kh6 {[%clk 0:00:16]}  Qd4 {[%clk 0:00:01]} 55. e7 {[%clk 0:00:13]}  Qh8+ {[%clk 0:00:01]} 56. Kg6 {[%clk 0:00:13]}  Kd7 {[%clk 0:00:02]} 57. e8=Q+ {[%clk 0:00:07]} 1-0


[Site "https://www.chess.com"]

[Event "Titled Tuesday Blitz January 31 Early 2023"]
[White "Skuhala, Barbara"]
[Black "Jovic, Stanoje"]
[WhiteFideId "14605465"]
[BlackFideId "905020"]
[WhiteElo "2153"]
[BlackElo "2075"]
[Result "1-0"]
[Round "04"]
[TimeControl "180+2"]
[Date "2023.01.31"]
[WhiteClock "0:00:42"]
[BlackClock "0:00:02"]

1. e4 {[%clk 0:02:59]}  c6 {[%clk 0:03:00]} 2. d4 {[%clk 0:02:58]}  d5 {[%clk 0:03:00]} 3. f3 {[%clk 0:02:58]}  e6 {[%clk 0:02:58]} 4. Nc3 {[%clk 0:02:56]}  Bb4 {[%clk 0:02:57]} 5. a3 {[%clk 0:02:55]}  Ba5 {[%clk 0:02:57]} 6. Ne2 {[%clk 0:02:52]}  Nf6 {[%clk 0:02:56]} 7. e5 {[%clk 0:02:52]}  Nfd7 {[%clk 0:02:56]} 8. f4 {[%clk 0:02:52]}  b5 {[%clk 0:02:55]} 9. Be3 {[%clk 0:02:52]}  Bb6 {[%clk 0:02:50]} 10. Qd2 {[%clk 0:02:52]}  a5 {[%clk 0:02:49]} 11. g3 {[%clk 0:02:46]}  Na6 {[%clk 0:02:41]} 12. Bg2 {[%clk 0:02:46]}  f5 {[%clk 0:02:31]} 13. exf6 {[%clk 0:02:46]}  Nxf6 {[%clk 0:02:25]} 14. O-O {[%clk 0:02:46]}  O-O {[%clk 0:02:25]} 15. Bf2 {[%clk 0:02:36]}  Bd7 {[%clk 0:02:24]} 16. h3 {[%clk 0:02:29]}  c5 {[%clk 0:02:23]} 17. dxc5 {[%clk 0:02:26]}  Nxc5 {[%clk 0:02:22]} 18. Nd4 {[%clk 0:02:25]}  b4 {[%clk 0:02:17]} 19. axb4 {[%clk 0:02:24]}  axb4 {[%clk 0:02:15]} 20. Nce2 {[%clk 0:02:24]}  Rxa1 {[%clk 0:02:07]} 21. Rxa1 {[%clk 0:02:22]}  Nce4 {[%clk 0:02:07]} 22. Qxb4 {[%clk 0:02:15]}  Nxf2 {[%clk 0:02:05]} 23. Kxf2 {[%clk 0:02:16]}  e5 {[%clk 0:02:05]} 24. fxe5 {[%clk 0:02:09]}  Ng4+ {[%clk 0:01:44]} 25. Kg1 {[%clk 0:02:09]}  Ne3 {[%clk 0:01:43]} 26. Qb3 {[%clk 0:02:02]}  Nxg2 {[%clk 0:01:31]} 27. Qxd5+ {[%clk 0:01:57]}  Kh8 {[%clk 0:01:25]} 28. e6 {[%clk 0:01:46]}  Bxe6 {[%clk 0:01:18]} 29. Qxe6 {[%clk 0:01:43]}  Bxd4+ {[%clk 0:01:17]} 30. Nxd4 {[%clk 0:01:15]}  Qxd4+ {[%clk 0:01:15]} 31. Kxg2 {[%clk 0:01:16]}  Qf2+ {[%clk 0:01:09]} 32. Kh1 {[%clk 0:01:15]}  Qxg3 {[%clk 0:01:03]} 33. Qf5 {[%clk 0:01:12]}  Re8 {[%clk 0:00:44]} 34. Rg1 {[%clk 0:01:09]}  Qe3 {[%clk 0:00:39]} 35. Qg4 {[%clk 0:01:04]}  g6 {[%clk 0:00:38]} 36. c3 {[%clk 0:00:57]}  Re4 {[%clk 0:00:35]} 37. Qc8+ {[%clk 0:00:54]}  Kg7 {[%clk 0:00:35]} 38. Rf1 {[%clk 0:00:52]}  Re8 {[%clk 0:00:20]} 39. Qd7+ {[%clk 0:00:51]}  Kh6 {[%clk 0:00:15]} 40. Qg4 {[%clk 0:00:49]}  Re7 {[%clk 0:00:08]} 41. Qf4+ {[%clk 0:00:47]}  Qxf4 {[%clk 0:00:07]} 42. Rxf4 {[%clk 0:00:48]}  Re2 {[%clk 0:00:07]} 43. b4 {[%clk 0:00:46]}  Re3 {[%clk 0:00:05]} 44. Rc4 {[%clk 0:00:46]}  Rxh3+ {[%clk 0:00:04]} 45. Kg2 {[%clk 0:00:46]}  Rd3 {[%clk 0:00:04]} 46. b5 {[%clk 0:00:46]}  Rd2+ {[%clk 0:00:05]} 47. Kf3 {[%clk 0:00:44]}  Rb2 {[%clk 0:00:05]} 48. Rb4 {[%clk 0:00:45]}  Rc2 {[%clk 0:00:02]} 49. c4 {[%clk 0:00:44]}  g5 {[%clk 0:00:02]} 50. b6 {[%clk 0:00:43]}  Rc3+ {[%clk 0:00:02]} 51. Ke2 {[%clk 0:00:42]} 1-0


[Site "https://www.chess.com"]

[Event "Titled Tuesday Blitz January 31 Early 2023"]
[White "Nguyen Hong Nhung"]
[Black "Alahakoon, Isuru"]
[WhiteFideId "12412201"]
[BlackFideId "9900993"]
[WhiteElo "2003"]
[BlackElo "1819"]
[Result "0-1"]
[Round "04"]
[TimeControl "180+2"]
[Date "2023.01.31"]
[WhiteClock "0:00:02"]
[BlackClock "0:00:25"]

1. e4 {[%clk 0:03:00]}  d5 {[%clk 0:02:59]} 2. exd5 {[%clk 0:03:01]}  Qxd5 {[%clk 0:02:59]} 3. Nc3 {[%clk 0:03:02]}  Qa5 {[%clk 0:02:59]} 4. d4 {[%clk 0:03:02]}  Nf6 {[%clk 0:02:59]} 5. Nf3 {[%clk 0:03:02]}  Bg4 {[%clk 0:02:59]} 6. h3 {[%clk 0:03:03]}  Bh5 {[%clk 0:02:59]} 7. g4 {[%clk 0:03:02]}  Bg6 {[%clk 0:03:00]} 8. Bg2 {[%clk 0:03:00]}  Nc6 {[%clk 0:02:58]} 9. Bd2 {[%clk 0:02:50]}  O-O-O {[%clk 0:02:58]} 10. Qe2 {[%clk 0:02:41]}  Rxd4 {[%clk 0:02:50]} 11. Nb5 {[%clk 0:01:45]}  Rb4 {[%clk 0:02:06]} 12. Bxb4 {[%clk 0:01:32]}  Qxb4+ {[%clk 0:02:07]} 13. c3 {[%clk 0:01:31]}  Qf4 {[%clk 0:02:01]} 14. Nbd4 {[%clk 0:01:20]}  Nxd4 {[%clk 0:01:57]} 15. Nxd4 {[%clk 0:01:21]}  e5 {[%clk 0:01:54]} 16. Qf3 {[%clk 0:00:59]}  Qxf3 {[%clk 0:01:26]} 17. Nxf3 {[%clk 0:01:00]}  Bd6 {[%clk 0:01:24]} 18. O-O-O {[%clk 0:00:52]}  e4 {[%clk 0:01:21]} 19. Nd2 {[%clk 0:00:49]}  Bf4 {[%clk 0:01:20]} 20. b3 {[%clk 0:00:39]}  Rd8 {[%clk 0:01:19]} 21. Rhe1 {[%clk 0:00:39]}  Rd3 {[%clk 0:01:07]} 22. Re2 {[%clk 0:00:21]}  Rxc3+ {[%clk 0:00:51]} 23. Kb2 {[%clk 0:00:21]}  Be5 {[%clk 0:00:51]} 24. Ka3 {[%clk 0:00:22]}  Rc2 {[%clk 0:00:49]} 25. Bf1 {[%clk 0:00:12]}  Bd6+ {[%clk 0:00:48]} 26. b4 {[%clk 0:00:13]}  a5 {[%clk 0:00:44]} 27. Nb3 {[%clk 0:00:06]}  Bxb4+ {[%clk 0:00:36]} 28. Ka4 {[%clk 0:00:06]}  Rc4 {[%clk 0:00:37]} 29. Rb2 {[%clk 0:00:05]}  Rc6 {[%clk 0:00:33]} 30. Nd4 {[%clk 0:00:05]}  Rd6 {[%clk 0:00:32]} 31. Rbb1 {[%clk 0:00:03]}  Nd7 {[%clk 0:00:28]} 32. Kb3 {[%clk 0:00:02]}  Nc5+ {[%clk 0:00:27]} 33. Kc4 {[%clk 0:00:03]}  c6 {[%clk 0:00:26]} 34. Nf5 {[%clk 0:00:02]}  b5# {[%clk 0:00:25]} 0-1


[Site "https://www.chess.com"]

[Event "Titled Tuesday Blitz January 31 Early 2023"]
[White "Zampronha, Wladimir Camilo"]
[Black "Ronka, Erik"]
[WhiteFideId "2103087"]
[BlackFideId "505080"]
[WhiteElo "2176"]
[BlackElo "2276"]
[Result "0-1"]
[Round "04"]
[TimeControl "180+2"]
[Date "2023.01.31"]
[WhiteClock "0:01:37"]
[BlackClock "0:00:55"]

1. e4 {[%clk 0:03:00]}  c6 {[%clk 0:02:59]} 2. d4 {[%clk 0:03:00]}  d5 {[%clk 0:03:00]} 3. e5 {[%clk 0:03:00]}  c5 {[%clk 0:03:00]} 4. Nf3 {[%clk 0:02:56]}  cxd4 {[%clk 0:02:58]} 5. Nxd4 {[%clk 0:02:56]}  Nc6 {[%clk 0:02:58]} 6. c4 {[%clk 0:02:56]}  e6 {[%clk 0:02:53]} 7. Nc3 {[%clk 0:02:53]}  Bc5 {[%clk 0:02:49]} 8. Nxc6 {[%clk 0:02:45]}  bxc6 {[%clk 0:02:50]} 9. Be2 {[%clk 0:02:40]}  Ne7 {[%clk 0:02:46]} 10. O-O {[%clk 0:02:36]}  O-O {[%clk 0:02:39]} 11. Kh1 {[%clk 0:02:35]}  Nf5 {[%clk 0:02:35]} 12. Bd3 {[%clk 0:02:28]}  Qh4 {[%clk 0:02:24]} 13. Bxf5 {[%clk 0:02:25]}  exf5 {[%clk 0:02:25]} 14. f4 {[%clk 0:02:13]}  Ba6 {[%clk 0:02:19]} 15. b3 {[%clk 0:02:09]}  dxc4 {[%clk 0:01:59]} 16. Rf3 {[%clk 0:02:05]}  Rfd8 {[%clk 0:01:18]} 17. Qf1 {[%clk 0:02:04]}  Rd3 {[%clk 0:01:14]} 18. bxc4 {[%clk 0:01:48]}  Rxf3 {[%clk 0:01:13]} 19. gxf3 {[%clk 0:01:42]}  Bxc4 {[%clk 0:00:59]} 20. Qxc4 {[%clk 0:01:39]}  Qe1+ {[%clk 0:00:52]} 21. Kg2 {[%clk 0:01:38]}  Qf2+ {[%clk 0:00:53]} 22. Kh3 {[%clk 0:01:37]}  Qxf3+ {[%clk 0:00:54]} 23. Kh4 {[%clk 0:01:37]}  Be7# {[%clk 0:00:55]} 0-1


[Site "https://www.chess.com"]

[Event "Titled Tuesday Blitz January 31 Early 2023"]
[White "Fajdetic, Hrvoje"]
[Black "Khandelwal, Ankush"]
[WhiteFideId "14501945"]
[BlackFideId "413470"]
[WhiteElo "2151"]
[BlackElo "2205"]
[Result "1/2-1/2"]
[Round "04"]
[TimeControl "180+2"]
[Date "2023.01.31"]
[WhiteClock "0:00:33"]
[BlackClock "0:00:12"]

1. d4 {[%clk 0:03:00]}  Nf6 {[%clk 0:02:59]} 2. Bf4 {[%clk 0:02:56]}  g6 {[%clk 0:02:58]} 3. Nc3 {[%clk 0:02:55]}  Bg7 {[%clk 0:02:58]} 4. e4 {[%clk 0:02:55]}  d6 {[%clk 0:02:59]} 5. Qd2 {[%clk 0:02:55]}  O-O {[%clk 0:02:59]} 6. O-O-O {[%clk 0:02:55]}  c6 {[%clk 0:02:57]} 7. Bh6 {[%clk 0:02:53]}  b5 {[%clk 0:02:57]} 8. f3 {[%clk 0:02:51]}  b4 {[%clk 0:02:50]} 9. Nce2 {[%clk 0:02:51]}  Qa5 {[%clk 0:02:47]} 10. Kb1 {[%clk 0:02:50]}  Be6 {[%clk 0:02:46]} 11. Nc1 {[%clk 0:02:49]}  Nbd7 {[%clk 0:02:40]} 12. h4 {[%clk 0:02:48]}  Nb6 {[%clk 0:02:39]} 13. h5 {[%clk 0:02:48]}  Na4 {[%clk 0:02:32]} 14. Nb3 {[%clk 0:02:40]}  Bxb3 {[%clk 0:01:41]} 15. axb3 {[%clk 0:02:36]}  Nc3+ {[%clk 0:01:42]} 16. bxc3 {[%clk 0:02:34]}  bxc3 {[%clk 0:01:43]} 17. Qc1 {[%clk 0:02:28]}  Rab8 {[%clk 0:01:26]} 18. Bxg7 {[%clk 0:02:27]}  Kxg7 {[%clk 0:01:27]} 19. hxg6 {[%clk 0:02:27]}  fxg6 {[%clk 0:01:26]} 20. Bc4 {[%clk 0:02:07]}  h5 {[%clk 0:01:07]} 21. Ne2 {[%clk 0:01:55]}  Rb4 {[%clk 0:01:01]} 22. e5 {[%clk 0:01:08]}  Rxc4 {[%clk 0:00:25]} 23. exf6+ {[%clk 0:01:06]}  exf6 {[%clk 0:00:26]} 24. Qe3 {[%clk 0:00:52]}  Rb8 {[%clk 0:00:12]} 25. Qe7+ {[%clk 0:00:36]}  Kh6 {[%clk 0:00:13]} 26. Qe3+ {[%clk 0:00:34]}  Kg7 {[%clk 0:00:12]} 27. Qe7+ {[%clk 0:00:33]}  Kh6 {[%clk 0:00:13]} 28. Qe3+ {[%clk 0:00:33]}  Kg7 {[%clk 0:00:12]} 1/2-1/2


[Site "https://www.chess.com"]

[Event "Titled Tuesday Blitz January 31 Early 2023"]
[White "Dos Santos, Emmanuel"]
[Black "Shohat, Yotam"]
[WhiteFideId "2103559"]
[BlackFideId "2813955"]
[WhiteElo "2261"]
[BlackElo "2346"]
[Result "1/2-1/2"]
[Round "04"]
[TimeControl "180+2"]
[Date "2023.01.31"]
[WhiteClock "0:00:17"]
[BlackClock "0:00:05"]

1. e4 {[%clk 0:03:00]}  c5 {[%clk 0:02:58]} 2. Nf3 {[%clk 0:03:00]}  d6 {[%clk 0:02:59]} 3. d4 {[%clk 0:03:01]}  cxd4 {[%clk 0:03:00]} 4. Qxd4 {[%clk 0:03:01]}  Nf6 {[%clk 0:03:00]} 5. e5 {[%clk 0:03:01]}  Nc6 {[%clk 0:02:54]} 6. Bb5 {[%clk 0:03:01]}  Qa5+ {[%clk 0:02:54]} 7. Nc3 {[%clk 0:03:02]}  Qxb5 {[%clk 0:02:54]} 8. Nxb5 {[%clk 0:03:02]}  Nxd4 {[%clk 0:02:54]} 9. Nfxd4 {[%clk 0:03:03]}  dxe5 {[%clk 0:02:54]} 10. Nf3 {[%clk 0:03:03]}  Nd5 {[%clk 0:02:42]} 11. c4 {[%clk 0:02:44]}  Bd7 {[%clk 0:02:31]} 12. Nxe5 {[%clk 0:02:28]}  Bxb5 {[%clk 0:02:23]} 13. cxb5 {[%clk 0:02:29]}  f6 {[%clk 0:02:16]} 14. Nc4 {[%clk 0:02:09]}  e5 {[%clk 0:02:09]} 15. O-O {[%clk 0:02:04]}  Be7 {[%clk 0:01:40]} 16. Rd1 {[%clk 0:02:00]}  O-O-O {[%clk 0:01:28]} 17. a4 {[%clk 0:01:41]}  Nb4 {[%clk 0:01:19]} 18. Be3 {[%clk 0:01:35]}  Nc2 {[%clk 0:01:10]} 19. Rac1 {[%clk 0:01:16]}  Rxd1+ {[%clk 0:01:09]} 20. Rxd1 {[%clk 0:01:14]}  Nxe3 {[%clk 0:01:10]} 21. Nxe3 {[%clk 0:01:14]}  Rd8 {[%clk 0:01:08]} 22. Rc1+ {[%clk 0:01:06]}  Kd7 {[%clk 0:01:04]} 23. Kf1 {[%clk 0:01:01]}  Ke6 {[%clk 0:00:57]} 24. Ke2 {[%clk 0:00:56]}  Rd7 {[%clk 0:00:49]} 25. b3 {[%clk 0:00:55]}  f5 {[%clk 0:00:48]} 26. Rc8 {[%clk 0:00:49]}  g6 {[%clk 0:00:41]} 27. Nc4 {[%clk 0:00:43]}  e4 {[%clk 0:00:34]} 28. Ra8 {[%clk 0:00:36]}  Bc5 {[%clk 0:00:32]} 29. Rc8 {[%clk 0:00:29]}  Kd5 {[%clk 0:00:28]} 30. Ne3+ {[%clk 0:00:20]}  Kd4 {[%clk 0:00:15]} 31. Nc2+ {[%clk 0:00:17]}  Kd5 {[%clk 0:00:16]} 32. Ne3+ {[%clk 0:00:17]}  Bxe3 {[%clk 0:00:10]} 33. Kxe3 {[%clk 0:00:18]}  Ke5 {[%clk 0:00:11]} 34. g3 {[%clk 0:00:18]}  Rd3+ {[%clk 0:00:10]} 35. Ke2 {[%clk 0:00:18]}  Rxb3 {[%clk 0:00:11]} 36. Rc7 {[%clk 0:00:17]}  Rb2+ {[%clk 0:00:10]} 37. Ke3 {[%clk 0:00:17]}  Rb3+ {[%clk 0:00:11]} 38. Ke2 {[%clk 0:00:17]}  a6 {[%clk 0:00:05]} 39. Rxb7 {[%clk 0:00:15]}  Rb2+ {[%clk 0:00:03]} 40. Ke3 {[%clk 0:00:15]}  Rb3+ {[%clk 0:00:04]} 41. Ke2 {[%clk 0:00:16]}  Rb2+ {[%clk 0:00:04]} 42. Ke3 {[%clk 0:00:16]}  Rb3+ {[%clk 0:00:05]} 43. Ke2 {[%clk 0:00:17]} 1/2-1/2


[Site "https://www.chess.com"]